bitfinex/quotes_SOLUSD_20260201
["timestamp","ask_amount","ask_price","bid_price","bid_amount"]
[1769924235168,0.72730519,105.39,105.36,1.14307054]
[1769924235363,0.72730519,105.38,105.35,10.63521799]
[1769924235751,0.72730519,105.38,105.36,1.14307054]
[1769924236470,13.68161816,105.39,105.36,1.14307054]
[1769924236769,0.72655339,105.38,105.36,1.14307054]
[1769924236949,0.72655339,105.38,105.35,1.14307054]
[1769924238066,4.19267759,105.38,105.35,1.14307054]
[1769924238871,13.68234074,105.38,105.35,1.14307054]
[1769924240469,13.68234074,105.38,105.33,1.14307054]
[1769924240470,0.72510091,105.36,105.33,1.14307054]
[1769924240674,0.72510091,105.35,105.33,1.14307054]
[1769924241175,4.19122511,105.34,105.32,1.24307054]
[1769924241367,4.19122511,105.34,105.32,0.1]
[1769924241754,4.19087235,105.35,105.32,1.24307054]
[1769924242672,0.72439945,105.34,105.32,1.24307054]
[1769924243058,0.72439945,105.34,105.32,0.1]
[1769924243476,4.19052365,105.34,105.32,0.1]
[1769924244380,0.72439945,105.34,105.32,0.1]
[1769924244980,13.68391765,105.34,105.32,0.1]
[1769924251385,10.21779345,105.34,105.32,0.1]
[1769924251569,13.68391765,105.34,105.32,0.1]
[1769924252480,0.62112529,105.32,105.3,0.2]
[1769924252683,4.08724949,105.33,105.3,1.34307054]
[1769924254385,13.58151329,105.33,105.3,1.34307054]
[1769924256788,0.61991794,105.32,105.3,1.34307054]
[1769924257482,13.58001271,105.33,105.3,1.34307054]
[1769924259391,0.61914575,105.32,105.3,1.34307054]
[1769924259568,13.57934682,105.33,105.3,1.34307054]
[1769924262796,4.08435652,105.32,105.3,1.34307054]
[1769924263187,3.4661242,105.32,105.3,1.34307054]
[1769924263491,13.57862032,105.33,105.3,1.34307054]
[1769924269192,10.11249612,105.33,105.3,1.34307054]
[1769924269397,13.57862032,105.33,105.3,1.34307054]
[1769924269599,13.58219459,105.33,105.3,1.34307054]
[1769924269894,0.617039,105.32,105.3,1.34307054]
[1769924270297,10.11194642,105.32,105.3,1.34307054]
[1769924270593,0.617039,105.32,105.3,1.34307054]
[1769924271596,13.58211236,105.32,105.3,1.34307054]
[1769924271807,4.08641387,105.31,105.29,0.2]
[1769924272093,13.58272727,105.31,105.29,1.29742121]
[1769924272280,10.1130288,105.31,105.29,1.29742121]
[1769924272877,9.4963134,105.31,105.29,1.29742121]
[1769924273882,10.11271259,105.31,105.29,1.29742121]
[1769924275284,0.61624381,105.3,105.29,0.2]
[1769924275489,0.61624381,105.3,105.27,1.09742121]
[1769924275692,13.58210208,105.31,105.27,1.09742121]
[1769924275995,13.58210208,105.31,105.28,1.09742121]
[1769924278804,13.58165179,105.31,105.27,1.09742121]
[1769924280102,0.61549325,105.3,105.27,1.09742121]
[1769924280301,0.61549325,105.29,105.27,1.09742121]
[1769924280503,0.61549325,105.29,105.26,1.09742121]
[1769924280691,12.96665422,105.3,105.24,1.19742121]
[1769924280692,0.61534827,105.27,105.24,1.19742121]
[1769924280893,4.08504674,105.27,105.24,1.19742121]
[1769924281094,0.61534827,105.26,105.24,1.19742121]
[1769924281685,4.08490343,105.27,105.24,1.19742121]
[1769924282610,13.58439128,105.27,105.24,1.19742121]
[1769924282803,10.11469281,105.27,105.24,1.19742121]
[1769924282985,0.61520496,105.27,105.24,1.19742121]
[1769924283188,10.11465404,105.27,105.24,1.19742121]
[1769924283788,0.61492325,105.26,105.24,1.19742121]
[1769924284806,13.58393237,105.27,105.24,1.19742121]
[1769924285209,10.1142339,105.27,105.24,1.19742121]
[1769924288596,9.49944908,105.27,105.24,1.19742121]
[1769924289218,10.11356523,105.27,105.24,1.19742121]
[1769924290910,0.61385931,105.28,105.25,1.15202512]
[1769924291104,0.61385931,105.28,105.25,4.62172359]
[1769924291490,0.61385931,105.28,105.26,1.15202512]
[1769924293100,0.61385931,105.28,105.23,0.3262675]
[1769924293101,0.61360834,105.26,105.23,1.47829262]
[1769924293308,4.08330681,105.25,105.23,0.3262675]
[1769924293613,0.61360834,105.25,105.23,0.3262675]
[1769924295318,10.1148435,105.25,105.23,0.3262675]
[1769924296219,10.1148435,105.25,105.23,1.47829262]
[1769924296607,0.61312346,105.24,105.23,0.3262675]
[1769924296998,13.58405709,105.25,105.23,0.3262675]
[1769924297199,10.11435862,105.25,105.23,0.3262675]
[1769924300109,13.58405709,105.25,105.23,0.3262675]
[1769924305423,13.58405709,105.25,105.23,1.47829262]
[1769924305728,10.11435862,105.25,105.23,1.47829262]
[1769924305926,13.58239286,105.26,105.23,1.47829262]
[1769924306113,10.11269439,105.26,105.23,1.47829262]
[1769924306614,9.49969784,105.27,105.24,1.15202512]
[1769924306813,10.11170274,105.27,105.24,1.15202512]
[1769924307519,3.46969847,105.28,105.24,1.15202512]
[1769924307520,10.11075861,105.28,105.24,1.15202512]
[1769924307723,10.11075861,105.28,105.25,1.15202512]
[1769924307724,13.58045708,105.28,105.25,1.15202512]
[1769924308418,10.10976225,105.29,105.26,1.15202512]
[1769924309211,13.57946072,105.29,105.26,1.15202512]
[1769924309505,10.10976225,105.29,105.26,1.15202512]
[1769924309709,13.57946072,105.29,105.26,1.15202512]
[1769924309910,0.61169377,105.27,105.24,1.15202512]
[1769924310111,4.08139224,105.27,105.24,1.15202512]
[1769924310625,0.61169377,105.27,105.24,4.62172359]
[1769924310831,4.0812909,105.26,105.23,1.47829262]
[1769924311032,0.61159243,105.25,105.23,1.47829262]
[1769924311216,0.61159243,105.25,105.23,0.3262675]
[1769924311217,0.61159243,105.24,105.23,0.3262675]
[1769924311408,0.61159243,105.23,105.21,1.25202512]
[1769924312614,13.58392787,105.24,105.21,1.25202512]
[1769924313933,3.46969847,105.23,105.21,1.25202512]
[1769924314122,4.08099382,105.23,105.21,1.25202512]
[1769924314733,3.46969847,105.23,105.21,1.25202512]
[1769924315326,13.58373322,105.24,105.21,1.25202512]
[1769924317724,13.58335716,105.24,105.21,1.25202512]
[1769924319637,10.11365869,105.24,105.21,1.25202512]
[1769924323724,13.58335716,105.24,105.21,1.25202512]
[1769924327156,4.88522585,105.26,105.22,1.1903147]
[1769924327333,5.56892509,105.28,105.24,4.66001317]
[1769924327524,5.56892509,105.28,105.25,1.1903147]
[1769924327723,0.609955,105.28,105.25,1.1903147]
[1769924328223,10.10889409,105.28,105.25,1.1903147]
[1769924328425,13.57859256,105.28,105.25,1.1903147]
[1769924328831,0.6097932,105.27,105.25,1.1903147]
[1769924329026,0.6097932,105.27,105.24,1.1903147]
[1769924329754,13.58182905,105.28,105.24,1.1903147]
[1769924333148,0.60948061,105.27,105.24,1.1903147]
[1769924333837,10.10930348,105.27,105.24,1.1903147]
[1769924334226,13.58247974,105.27,105.24,1.1903147]
[1769924334424,4.08250591,105.25,105.22,1.1903147]
[1769924334633,3.47317626,105.24,105.22,1.1903147]
[1769924335449,4.08243172,105.24,105.22,1.1903147]
[1769924336048,13.58510413,105.24,105.22,1.1903147]
[1769924338851,4.08221424,105.23,105.2,1.1903147]
[1769924339039,3.47317626,105.22,105.2,1.1903147]
[1769924339950,4.08221424,105.23,105.2,1.1903147]
[1769924342756,13.58575309,105.23,105.2,1.1903147]
[1769924345161,10.11257683,105.23,105.2,1.1903147]
[1769924345660,9.50353885,105.23,105.2,1.1903147]
[1769924346039,0.60855891,105.22,105.19,1.3903147]
[1769924346461,0.60855891,105.22,105.2,1.1903147]
[1769924346945,13.58520869,105.23,105.2,1.1903147]
[1769924348540,0.60849358,105.23,105.21,1.0762836]
[1769924348740,13.58406365,105.24,105.21,1.0762836]
[1769924349350,0.60830205,105.22,105.19,1.2762836]
[1769924349659,4.08141593,105.22,105.19,1.2762836]
[1769924349840,0.60823967,105.22,105.19,1.2762836]
[1769924350040,0.60823967,105.22,105.2,1.0762836]
[1769924350440,10.1124773,105.22,105.2,1.0762836]
[1769924352063,10.11068056,105.24,105.21,1.0762836]
[1769924352259,0.60811705,105.23,105.2,1.0762836]
[1769924353366,13.58379657,105.24,105.2,10.5819392]
[1769924353656,0.60799723,105.23,105.2,1.0762836]
[1769924354558,10.1112927,105.23,105.2,1.0762836]
[1769924355257,4.08111461,105.22,105.19,1.2762836]
[1769924355865,4.08105641,105.2,105.18,1.0762836]
[1769924356157,0.60788015,105.19,105.16,1.0762836]
[1769924356362,0.60788015,105.19,105.16,10.58560223]
[1769924356556,0.60788015,105.19,105.17,1.0762836]
[1769924357853,13.5869675,105.2,105.17,1.0762836]
[1769924358271,10.11379124,105.2,105.17,1.0762836]
[1769924358461,0.60770952,105.19,105.17,1.0762836]
[1769924359078,3.47317626,105.19,105.15,1.0762836]
[1769924359251,4.08088578,105.18,105.14,1.0762836]
[1769924360674,13.58866065,105.18,105.14,1.0762836]
[1769924360980,10.11548439,105.18,105.14,1.0762836]
[1769924361271,10.11548439,105.18,105.15,1.0762836]
[1769924362470,13.58866065,105.18,105.15,1.0762836]
[1769924363045,0.60749102,105.16,105.13,1.1762836]
[1769924363247,0.60749102,105.16,105.13,4.64945986]
[1769924363454,0.60749102,105.16,105.13,1.1762836]
[1769924364355,0.60749102,105.16,105.13,10.68828627]
[1769924365166,0.60749102,105.16,105.13,9.61200267]
[1769924365471,0.60749102,105.16,105.14,1.0762836]
[1769924368366,13.58904063,105.17,105.14,1.0762836]
[1769924369057,10.11586437,105.17,105.14,1.0762836]
[1769924369258,13.58904063,105.17,105.14,1.0762836]
[1769924369458,0.60713212,105.16,105.13,1.1762836]
[1769924370361,4.08030838,105.16,105.13,1.1762836]
[1769924371359,3.47317626,105.16,105.13,1.1762836]
[1769924371756,0.6070348,105.16,105.13,10.68819626]
[1769924371982,0.6070348,105.16,105.13,1.1762836]
[1769924371983,4.08021106,105.16,105.13,1.1762836]
[1769924372895,3.47317626,105.16,105.13,1.1762836]
[1769924374470,13.58879588,105.17,105.13,1.1762836]
[1769924375285,0.60689296,105.16,105.13,1.1762836]
[1769924375667,12.98180891,105.17,105.13,1.1762836]
[1769924375668,13.58865568,105.17,105.13,1.1762836]
[1769924377490,4.0798876,105.16,105.13,1.1762836]
[1769924378683,13.58968261,105.16,105.13,1.1762836]
[1769924379191,12.98297127,105.16,105.13,1.1762836]
[1769924380981,10.11637553,105.16,105.13,1.1762836]
[1769924384093,3.47317626,105.17,105.14,1.18969422]
[1769924384094,10.11520829,105.17,105.14,1.18969422]
[1769924384294,13.58838455,105.17,105.14,1.18969422]
[1769924385191,0.60637232,105.16,105.14,1.18969422]
[1769924388506,0.60621421,105.15,105.13,1.28969422]
[1769924388699,13.58911765,105.16,105.13,1.28969422]
[1769924389609,10.11594139,105.16,105.13,1.28969422]
[1769924389993,13.58911765,105.16,105.13,1.28969422]
[1769924390683,0.60613785,105.14,105.13,0.1]
[1769924390889,0.60613785,105.13,105.12,1e-08]
[1769924391114,4.07931411,105.13,105.12,1e-08]
[1769924391497,0.60610033,105.12,105.1,0.1]
[1769924391691,4.090183,105.11,105.1,0.1]
[1769924391993,4.090183,105.12,105.1,0.1]
[1769924392312,0.60610033,105.12,105.1,0.1]
[1769924392902,13.60137597,105.14,105.11,1.18969422]
[1769924393223,0.60606323,105.13,105.11,1.18969422]
[1769924394009,0.60606323,105.13,105.1,4.77377689]
[1769924394189,0.60606323,105.13,105.1,14.28836115]
[1769924396492,0.60606323,105.13,105.11,1.18969422]
[1769924396892,10.11714915,105.14,105.11,1.18969422]
[1769924397093,8.43766695,105.17,105.13,1.18969422]
[1769924397414,12.7129378,105.17,105.13,1.18969422]
[1769924397713,7.75935352,105.17,105.13,1.18969422]
[1769924397886,3.48408267,105.17,105.13,1.18969422]
[1769924398208,9.50981031,105.16,105.13,1.18969422]
[1769924399100,9.71565975,105.16,105.13,1.18969422]
[1769924401122,32.40864121,105.2,105.16,1.18969422]
[1769924401411,0.20578141,105.19,105.16,4.67377689]
[1769924401617,9.7123885,105.19,105.16,4.67377689]
[1769924401841,9.7123885,105.19,105.17,1.18969422]
[1769924402119,0.20574798,105.21,105.19,1.18969422]
[1769924402292,47.50489733,105.26,105.19,1.18969422]
[1769924402293,0.20574798,105.22,105.19,1.18969422]
[1769924402493,0.20332327,105.23,105.2,4.67377689]
[1769924403439,14.4527916,105.26,105.23,1.18969422]
[1769924403604,14.4527916,105.26,105.22,3.48408267]
[1769924403605,0.20092641,105.25,105.22,1.18969422]
[1769924404119,3.68500908,105.25,105.22,1.18969422]
[1769924405228,3.68263974,105.26,105.22,10.69317328]
[1769924405417,3.68263974,105.26,105.23,1.18969422]
[1769924405608,0.19855707,105.26,105.23,1.18969422]
[1769924405828,0.19855707,105.26,105.23,10.69260491]
[1769924406128,0.19855707,105.26,105.23,1.18969422]
[1769924406510,0.19855707,105.26,105.23,14.17637363]
[1769924407131,0.19855707,105.26,105.23,10.69229096]
[1769924408228,3.67343145,105.27,105.24,1.08871528]
[1769924409734,0.18934878,105.27,105.24,1.08871528]
[1769924410030,13.36782094,105.28,105.24,4.57279795]
[1769924410226,13.36782094,105.28,105.24,14.07461136]
[1769924410532,9.88373827,105.28,105.25,1.08871528]
[1769924410835,7.75935352,105.28,105.24,1.18116616]
[1769924411017,3.48408267,105.27,105.24,1.18116616]
[1769924412232,3.68408267,105.3,105.26,1.18116616]
[1769924413217,13.18109186,105.3,105.26,1.18116616]
[1769924414337,0.2,105.3,105.27,1.18116616]
[1769924416234,0.2,105.3,105.27,4.66524883]
[1769924416630,3.48408267,105.29,105.25,1.18116616]
[1769924417037,3.48408267,105.29,105.26,1.18116616]
[1769924417222,12.98189862,105.29,105.26,1.18116616]
[1769924420841,0.2,105.3,105.27,1.18116616]
[1769924422946,0.2,105.3,105.28,1.18116616]
[1769924423235,0.2,105.3,105.26,9.49992395]
[1769924423417,14.26757477,105.3,105.26,12.98400662]
[1769924424232,4.57089294,105.29,105.25,9.50111368]
[1769924425342,14.06876633,105.29,105.26,1.07627179]
[1769924426235,1.08681027,105.28,105.25,10.57738547]
[1769924426437,4.57089294,105.28,105.25,10.57738547]
[1769924427242,1.08681027,105.28,105.25,10.57738547]
[1769924428531,4.57089294,105.28,105.25,10.57738547]
[1769924430749,1.08681027,105.27,105.24,1.07627179]
[1769924430938,4.57089294,105.27,105.24,1.07627179]
[1769924432845,1.08681027,105.25,105.22,10.57976488]
[1769924433144,1.08681027,105.24,105.21,9.50436666]
[1769924433337,4.57089294,105.25,105.22,1.07627179]
[1769924435043,4.57089294,105.25,105.22,10.58008445]
[1769924436640,1.08681027,105.26,105.23,1.07627179]
[1769924438252,1.09573993,105.28,105.25,1.12771544]
[1769924438631,4.5798226,105.28,105.25,1.12771544]
[1769924438841,12.98257908,105.28,105.25,1.12771544]
[1769924439043,1.09168419,105.27,105.24,1.12771544]
[1769924440157,1.09168419,105.27,105.24,14.11379584]
[1769924442448,1.09168419,105.27,105.24,1.12771544]
[1769924442651,10.59119996,105.27,105.24,1.12771544]
[1769924444550,1.06456886,105.26,105.23,14.08165287]
[1769924445232,1.06456886,105.26,105.23,10.5975702]
[1769924445643,1.06087116,105.27,105.24,1.09505578]
[1769924450047,10.56034736,105.27,105.24,1.09505578]
[1769924452358,14.03351116,105.27,105.24,1.09505578]
[1769924452958,10.56034736,105.27,105.24,1.09505578]
[1769924458757,1.01649383,105.26,105.24,1.09505578]
[1769924460267,13.98598832,105.27,105.24,1.09505578]
[1769924460460,1.01023893,105.25,105.22,1.09505578]
[1769924460763,4.48340273,105.25,105.22,1.09505578]
[1769924461466,1.01023893,105.22,105.19,1.09505578]
[1769924461765,1.00716526,105.25,105.21,1.09505578]
[1769924461966,13.98170651,105.25,105.22,1.09505578]
[1769924463349,10.50854271,105.25,105.22,1.09505578]
[1769924464867,13.98170651,105.25,105.22,1.09505578]
[1769924465669,3.4731638,105.24,105.22,1.09505578]
[1769924466054,4.46838338,105.23,105.2,1.09505578]
[1769924466974,12.97732007,105.22,105.2,1.09505578]
[1769924468178,13.96393575,105.22,105.19,1.04184953]
[1769924469479,12.97732007,105.22,105.19,1.04184953]
[1769924472768,13.95024227,105.22,105.19,1.04184953]
[1769924473661,4.44344094,105.2,105.17,1.04184953]
[1769924474880,4.44082627,105.19,105.16,1.04184953]
[1769924475379,13.94794237,105.19,105.16,1.04184953]
[1769924477588,13.93931155,105.2,105.16,1.04184953]
[1769924478486,0.95750067,105.19,105.16,1.04184953]
[1769924478884,4.43066447,105.17,105.14,1.04184953]
[1769924479181,0.95750067,105.16,105.14,1.04184953]
[1769924479390,4.43066447,105.17,105.14,1.04184953]
[1769924479591,13.9395738,105.17,105.14,1.04184953]
[1769924482077,13.93117761,105.18,105.14,10.55287712]
[1769924482276,10.45725672,105.19,105.16,1.04184953]
[1769924482872,10.45680527,105.19,105.17,1.04184953]
[1769924483379,9.50662365,105.19,105.17,1.04184953]
[1769924483576,9.50662365,105.19,105.11,0.1]
[1769924483577,0.94544129,105.17,105.11,0.1]
[1769924483780,4.41860509,105.14,105.11,0.1]
[1769924483991,4.41860509,105.14,105.11,1.14184953]
[1769924483992,0.94544129,105.14,105.11,1.14184953]
[1769924484577,14.72808988,105.16,105.12,1.04184953]
[1769924484777,18.20125368,105.16,105.13,1.04184953]
[1769924485687,0.94311188,105.16,105.13,1.04184953]
[1769924485992,13.92270376,105.17,105.13,1.04184953]
[1769924487098,12.98252474,105.16,105.13,1.04184953]
[1769924487792,13.92273824,105.17,105.13,1.04184953]
[1769924488597,13.92273824,105.17,105.14,1.04184953]
[1769924491103,3.4731638,105.16,105.14,1.04184953]
[1769924496218,10.44957444,105.17,105.14,1.04184953]
[1769924496519,3.4731638,105.16,105.14,1.04184953]
[1769924496811,12.98249894,105.16,105.14,1.04184953]
[1769924497913,13.89567331,105.16,105.13,0.97608152]
[1769924498122,3.4731638,105.14,105.12,0.97608152]
[1769924498496,4.38633817,105.15,105.12,0.97608152]
[1769924498907,3.4731638,105.14,105.12,0.97608152]
[1769924499514,4.38244308,105.14,105.12,0.97608152]
[1769924499823,4.38244308,105.14,105.11,1.07608152]
[1769924500404,3.4731638,105.14,105.11,1.07608152]
[1769924503122,4.37491777,105.13,105.11,0.1]
[1769924503305,3.4731638,105.13,105.11,1.10889559]
[1769924507034,3.4731638,105.12,105.11,1.10889559]
[1769924509929,3.4731638,105.12,105.11,0.1]
[1769924511135,4.36255695,105.13,105.11,0.1]
[1769924511640,4.37206576,105.13,105.11,0.1]
[1769924512136,2.30150645,105.13,105.11,1.10889559]
[1769924512336,3.48267261,105.14,105.11,1.10889559]
[1769924512536,4.36871384,105.15,105.11,1.10889559]
[1769924513545,4.36871384,105.15,105.12,1.00889559]
[1769924517442,4.35911047,105.14,105.11,1.10889559]
[1769924518445,4.35911047,105.14,105.12,1.00889559]
[1769924520246,3.48267261,105.14,105.12,1.00889559]
[1769924520951,4.35605445,105.15,105.12,1.00889559]
[1769924521250,4.35605445,105.15,105.12,10.52171813]
[1769924521842,3.48267261,105.15,105.13,1.00889559]
[1769924522143,3.48267261,105.17,105.15,1.00889559]
[1769924523451,3.48267261,105.16,105.15,1.00889559]
[1769924526250,4.52133901,105.16,105.11,23.88283107]
[1769924526555,3.48267261,105.14,105.11,23.88283107]
[1769924526752,3.48267261,105.13,105.11,0.1]
[1769924526957,3.48267261,105.12,105.11,0.1]
[1769924527640,3.48267261,105.12,105.1,9.61430731]
[1769924527641,3.48267261,105.12,105.1,0.1]
[1769924528355,3.48267261,105.12,105.1,1.03239349]
[1769924529053,3.48267261,105.11,105.1,1.03239349]
[1769924530757,3.48267261,105.12,105.1,1.03239349]
[1769924531140,3.48267261,105.11,105.09,0.1]
[1769924532252,1.00733956,105.12,105.09,0.1]
[1769924532253,3.48267261,105.1,105.09,0.1]
[1769924532458,3.48267261,105.1,105.07,0.1]
[1769924533250,3.48267261,105.1,105.08,0.93239349]
[1769924535137,1.00733956,105.11,105.08,0.93239349]
[1769924535346,3.48267261,105.12,105.09,0.93239349]
[1769924535648,4.49001217,105.12,105.09,0.93239349]
[1769924537759,4.49001217,105.12,105.09,10.44763345]
[1769924538451,3.48267261,105.11,105.09,10.44763345]
[1769924538862,3.48267261,105.11,105.09,0.93239349]
[1769924539064,3.48267261,105.1,105.08,9.51617428]
[1769924539449,3.48267261,105.1,105.08,10.44856777]
[1769924539760,4.49001217,105.1,105.08,9.51617428]
[1769924540265,4.49001217,105.1,105.08,10.44856777]
[1769924540849,4.49001217,105.1,105.08,9.51617428]
[1769924541051,1.00733956,105.09,105.07,9.61702418]
[1769924541359,4.49001217,105.1,105.07,10.54941767]
[1769924544777,3.48267261,105.1,105.07,1.03239349]
[1769924545060,1.00733956,105.08,105.07,0.1]
[1769924546268,4.49001217,105.09,105.07,0.1]
[1769924547057,1.00733956,105.08,105.07,0.1]
[1769924548375,1.00733956,105.08,105.05,10.55143578]
[1769924548571,1.00733956,105.08,105.06,0.93239349]
[1769924551069,1.00733956,105.12,105.07,0.93239349]
[1769924551375,4.49001217,105.11,105.07,10.44925316]
[1769924552272,1.00733956,105.1,105.07,10.44925316]
[1769924553983,1.00733956,105.09,105.07,9.51685967]
[1769924554762,4.49001217,105.09,105.07,9.51685967]
[1769924555081,4.49001217,105.09,105.07,0.93239349]
[1769924556173,1.00733956,105.09,105.07,0.93239349]
[1769924557886,1.00733956,105.09,105.07,10.44972074]
[1769924560981,3.48267261,105.1,105.07,10.44972074]
[1769924560982,4.35258031,105.1,105.07,10.44972074]
[1769924567190,0.8699077,105.1,105.07,10.44972074]
[1769924567886,4.35258031,105.1,105.07,10.44972074]
[1769924568391,4.34336233,105.1,105.07,10.44972074]
[1769924568585,0.86068972,105.1,105.08,0.86093694]
[1769924569080,4.34336233,105.11,105.08,0.86093694]
[1769924569279,4.34336233,105.11,105.08,10.3770869]
[1769924570188,3.48267261,105.11,105.08,10.3770869]
[1769924570387,0.86068972,105.1,105.08,10.3770869]
[1769924572288,0.86068972,105.1,105.08,9.51614996]
[1769924572487,0.86068972,105.1,105.08,10.3770869]
[1769924573395,0.86068972,105.08,105.06,9.51837045]
[1769924573697,4.34612034,105.08,105.06,10.37930739]
[1769924573988,4.34612034,105.08,105.06,9.51837045]
[1769924576892,4.34612034,105.09,105.06,0.86093694]
[1769924577697,0.86068972,105.09,105.06,0.86093694]
[1769924579194,0.86068972,105.09,105.07,9.51746454]
[1769924579895,0.86068972,105.09,105.07,10.37840148]
[1769924580192,4.34612034,105.1,105.07,10.37840148]
[1769924581095,3.48543062,105.1,105.08,0.86093694]
[1769924581277,4.34612034,105.11,105.08,10.37676255]
[1769924582699,0.86068972,105.12,105.09,0.86093694]
[1769924582884,3.48543062,105.12,105.09,0.86093694]
[1769924583080,4.34612034,105.12,105.09,0.86093694]
[1769924583279,4.34612034,105.12,105.1,9.51474785]
[1769924583583,4.34612034,105.12,105.1,10.37568479]
[1769924586002,4.34612034,105.12,105.1,9.51474785]
[1769924589409,4.27742867,105.11,105.1,9.51474785]
[1769924590597,0.79199805,105.11,105.1,9.51474785]
[1769924594707,4.27742867,105.12,105.1,9.51474785]
[1769924595910,0.79199805,105.1,105.06,23.79479532]
[1769924596210,4.27742867,105.09,105.07,9.5174075]
[1769924597897,4.27742867,105.08,105.06,9.51834939]
[1769924598895,4.27742867,105.08,105.06,10.3405272]
[1769924599307,3.48543062,105.08,105.06,10.3405272]
[1769924599616,4.27742867,105.09,105.06,10.3405272]
[1769924600513,4.27742867,105.09,105.06,10.34054439]
[1769924600690,3.48543062,105.08,105.06,10.34054439]
[1769924601098,4.27742867,105.09,105.06,10.34054439]
[1769924601701,4.27742867,105.08,105.05,10.44145434]
[1769924601901,4.27742867,105.08,105.06,0.82217781]
[1769924602100,0.79199805,105.08,105.06,0.82217781]
[1769924605228,0.79199805,105.08,105.06,10.34046308]
[1769924611432,0.79199805,105.06,105.03,0.1]
[1769924611641,0.79199805,105.04,105.03,0.1]
[1769924613227,0.79199805,105.04,105.03,9.62108921]
[1769924613416,4.928,105.05,105.03,0.1]
[1769924614303,17.93274375,105.05,105.01,0.82217781]
[1769924614510,3.48543062,105.04,105.01,0.82217781]
[1769924615311,4.27742867,105.04,105.01,0.82217781]
[1769924616223,37.59603221,105.04,104.99,0.1]
[1769924616408,3.48543062,105.01,104.99,0.1]
[1769924616808,3.48543062,105.02,104.99,0.1]
[1769924617329,13.79557525,105.04,104.99,0.1]
[1769924617523,3.48543062,105.02,104.99,0.88941249]
[1769924617913,3.48543062,105.02,104.99,10.41401745]
[1769924620223,23.79461213,105.07,105.0,0.78941249]
[1769924620427,3.48543062,105.05,105.01,0.78941249]
[1769924621322,3.48543062,105.04,105.01,0.78941249]
[1769924622318,3.48543062,105.04,105.01,10.3121736]
[1769924622516,3.48543062,105.03,105.01,10.3121736]
[1769924622734,3.48543062,105.04,105.01,10.3121736]
[1769924625318,3.48543062,105.03,105.01,10.3121736]
[1769924625632,3.48543062,105.04,105.01,10.3121736]
[1769924627337,3.48543062,105.03,105.01,9.52276111]
[1769924627519,3.48543062,105.02,104.99,34.22518117]
[1769924627724,3.48543062,105.02,104.99,10.41338958]
[1769924628421,3.48543062,105.02,105.0,10.31321719]
[1769924629140,3.48543062,105.03,105.0,10.31321719]
[1769924630444,4.13095177,105.03,105.0,0.12229811]
[1769924631726,0.64045312,105.02,105.0,0.12229811]
[1769924632942,0.63796268,105.04,105.01,0.75278119]
[1769924633140,0.63796268,105.06,105.02,0.75278119]
[1769924633345,0.63796268,105.05,105.02,0.75278119]
[1769924634446,4.12093147,105.06,105.02,0.75278119]
[1769924634838,4.12093147,105.06,105.02,10.27398899]
[1769924635142,4.12093147,105.06,105.03,0.75278119]
[1769924635745,4.12300425,105.06,105.03,0.75278119]
[1769924638040,3.4875034,105.04,104.99,0.1]
[1769924638233,3.4875034,105.0,104.99,0.1]
[1769924638443,3.4875034,105.0,104.98,0.75278119]
[1769924638642,0.64082812,105.01,104.99,0.75278119]
[1769924638843,4.13085927,105.02,104.99,0.75278119]
[1769924639040,3.4875034,105.01,104.99,0.75278119]
[1769924640454,4.13085927,105.02,104.99,10.27732733]
[1769924640947,4.13582799,105.0,104.96,0.85278119]
[1769924641137,3.4875034,104.99,104.96,10.379741]
[1769924641642,4.13826962,104.97,104.95,109.62799299]
[1769924641938,3.4875034,104.96,104.95,100.1]
[1769924642141,4.13826962,104.96,104.95,100.1]
[1769924642334,4.13826962,104.96,104.94,9.52886085]
[1769924644237,0.65556569,104.99,104.95,0.75278119]
[1769924644451,3.4875034,104.98,104.95,0.75278119]
[1769924644955,3.4875034,104.96,104.91,1.11377946]
[1769924645245,3.4875034,104.94,104.91,1.11377946]
[1769924645553,3.4875034,104.93,104.91,1.11377946]
[1769924645741,3.4875034,104.94,104.91,1.11377946]
[1769924646543,3.4875034,104.94,104.91,10.64523793]
[1769924646744,3.4875034,104.93,104.91,9.53145847]
[1769924647453,9.52781987,104.96,104.91,10.64523793]
[1769924647634,3.4875034,104.94,104.91,9.53145847]
[1769924647831,3.4875034,104.93,104.91,9.53145847]
[1769924648254,4.27527085,104.98,104.9,9.53269089]
[1769924648454,3.4875034,104.92,104.9,9.53269089]
[1769924648654,9.52848299,104.95,104.9,9.53269089]
[1769924648860,9.52785286,104.96,104.9,10.64647035]
[1769924649061,3.4875034,104.94,104.91,1.11377946]
[1769924649669,3.4875034,104.92,104.9,9.53269089]
[1769924650047,3.4875034,104.91,104.88,1.11377946]
[1769924650267,3.4875034,104.9,104.88,1.11377946]
[1769924650567,3.4875034,104.89,104.86,124.80484894]
[1769924650742,3.4875034,104.88,104.87,1.11377946]
[1769924651358,3.4875034,104.89,104.87,1.11377946]
[1769924651662,34.22277425,104.94,104.87,1.11377946]
[1769924651663,3.4875034,104.9,104.87,1.11377946]
[1769924652057,3.4875034,104.91,104.87,1.11377946]